bitfinex/quotes_ETHUSD_20260313
["timestamp","ask_amount","ask_price","bid_price","bid_amount"]
[1773404431981,1.1453112,2128.2,2127.8,1.32047764]
[1773404432150,1.13574417,2128.2,2127.8,1.32047764]
[1773404432350,1.10581668,2128.2,2127.8,1.32047764]
[1773404432549,1.06134531,2128.2,2127.8,1.32047764]
[1773404432787,7.41426392,2128.2,2127.8,1.32047764]
[1773404432950,7.36866451,2128.2,2127.8,1.32047764]
[1773404433154,7.33950524,2128.2,2127.8,1.32047764]
[1773404433463,6.41122709,2128.2,2127.7,1.32147764]
[1773404433661,7.54118649,2128.2,2127.7,1.32147764]
[1773404433853,7.49660942,2128.2,2127.7,1.32147764]
[1773404434058,7.4519313,2128.2,2127.7,1.32147764]
[1773404434248,7.43702809,2128.2,2127.7,1.32147764]
[1773404434445,7.39103438,2128.2,2127.7,1.32147764]
[1773404434678,7.37627338,2128.2,2127.7,1.32147764]
[1773404434885,7.37627338,2128.2,2127.8,1.641]
[1773404435976,7.33213092,2128.2,2127.7,0.001]
[1773404436176,6.36520715,2128.1,2127.7,0.001]
[1773404436359,6.35003712,2128.1,2127.7,0.001]
[1773404436684,6.41122709,2127.9,2127.7,0.001]
[1773404437179,6.36663916,2127.9,2127.7,0.001]
[1773404437380,6.35246001,2127.9,2127.7,0.001]
[1773404437681,6.29246433,2127.9,2127.7,0.001]
[1773404437848,6.23362399,2127.9,2127.7,0.001]
[1773404438050,6.18935364,2127.9,2127.7,0.001]
[1773404438278,6.15973991,2127.9,2127.7,0.001]
[1773404438459,1.17492245,2127.8,2127.7,0.001]
[1773404438662,7.54203176,2127.8,2127.7,0.001]
[1773404438874,7.48202695,2127.8,2127.7,0.001]
[1773404439181,7.42263572,2127.8,2127.7,0.001]
[1773404439358,7.4077323,2127.8,2127.7,0.001]
[1773404439564,7.36272559,2127.8,2127.7,0.001]
[1773404439754,7.30273857,2127.8,2127.7,0.001]
[1773404439956,6.38149662,2127.8,2127.7,0.001]
[1773404440151,7.51147104,2127.8,2127.7,0.001]
[1773404440355,7.48244785,2127.8,2127.7,0.001]
[1773404440570,7.45242574,2127.8,2127.7,0.001]
[1773404440777,1.17475682,2128.1,2127.7,2.09534758]
[1773404440964,1.13139054,2128.1,2127.7,2.09534758]
[1773404441154,1.08652706,2128.1,2127.8,2.09434758]
[1773404441355,1.07133808,2128.1,2127.8,2.09434758]
[1773404441656,1.01164779,2128.1,2127.8,2.09434758]
[1773404441852,0.96715996,2128.1,2127.8,2.09434758]
[1773404442062,7.33429068,2128.1,2127.7,0.001]
[1773404442682,7.33429068,2128.1,2127.7,2.09534758]
[1773404442995,11.11225439,2128.2,2127.7,2.09534758]
[1773404443282,1.0996161,2128.1,2127.7,2.09534758]
[1773404443655,1.08428802,2128.1,2127.7,2.09534758]
[1773404443859,1.06941497,2128.1,2127.7,2.09534758]
[1773404444057,1.04005589,2128.1,2127.7,2.09534758]
[1773404444284,7.39033151,2128.1,2127.7,2.09534758]
[1773404444582,7.37506783,2128.1,2127.7,2.09534758]
[1773404444775,7.31643519,2128.1,2127.7,2.09534758]
[1773404444973,6.39656599,2128.1,2127.7,0.001]
[1773404445174,7.51320912,2128.1,2127.7,0.001]
[1773404445376,7.48335406,2128.1,2127.7,0.001]
[1773404445579,7.46904175,2128.1,2127.7,0.001]
[1773404445774,7.43858064,2128.1,2127.7,0.001]
[1773404445990,7.39410915,2128.1,2127.7,0.001]
[1773404446467,7.39410915,2128.1,2127.6,0.001]
[1773404446787,6.30896228,2127.9,2127.5,0.001]
[1773404446980,6.27852582,2127.9,2127.4,0.001]
[1773404447175,6.27869834,2127.8,2127.4,0.001]
[1773404447389,6.23397046,2127.8,2127.4,0.001]
[1773404447583,6.21893492,2127.8,2127.4,0.001]
[1773404447886,6.14471571,2127.8,2127.4,0.001]
[1773404448192,6.0857193,2127.8,2127.4,0.001]
[1773404448390,6.04085009,2127.8,2127.4,0.001]
[1773404448591,6.04085009,2127.8,2127.4,2.61637423]
[1773404448889,1.14530114,2127.7,2127.4,2.61637423]
[1773404449099,1.08578011,2127.7,2127.4,2.61637423]
[1773404449264,1.04109379,2127.7,2127.4,2.61637423]
[1773404449465,1.01154547,2127.7,2127.4,0.001]
[1773404449664,0.98198114,2127.7,2127.4,0.001]
[1773404449993,0.90740313,2127.7,2127.4,0.001]
[1773404450200,10.66706055,2127.8,2127.4,0.001]
[1773404450359,5.96736629,2127.8,2127.4,0.001]
[1773404450666,1.1447389,2127.8,2127.5,2.68885803]
[1773404450866,6.30896228,2128.0,2127.6,4.36285934]
[1773404450867,1.15934134,2128.0,2127.6,4.36285934]
[1773404451058,4.69919181,2128.1,2127.6,4.36285934]
[1773404451059,1.14546274,2128.1,2127.7,2.70368535]
[1773404451259,1.10046793,2128.1,2127.7,2.70368535]
[1773404451486,1.05547715,2128.1,2127.7,2.70368535]
[1773404451686,1.04131734,2128.1,2127.7,2.70368535]
[1773404451894,0.98154102,2128.1,2127.7,2.70368535]
[1773404452108,0.93760224,2128.1,2127.7,2.70368535]
[1773404452262,0.89295961,2128.1,2127.7,2.70368535]
[1773404452466,7.04974507,2128.1,2127.6,1.627]
[1773404452673,7.03435833,2128.1,2127.6,1.627]
[1773404452874,6.99003684,2128.1,2127.6,1.627]
[1773404453185,6.91670011,2128.1,2127.6,1.627]
[1773404453366,6.8568197,2128.1,2127.6,1.631]
[1773404453569,6.84129471,2128.1,2127.6,1.631]
[1773404453764,6.79549865,2128.1,2127.6,1.631]
[1773404454001,6.7514149,2128.1,2127.6,1.631]
[1773404454206,6.70794441,2128.1,2127.5,1.632]
[1773404454392,6.66274378,2128.1,2127.5,1.632]
[1773404454596,6.63270791,2128.1,2127.6,0.001]
[1773404454900,1.17492245,2127.8,2127.6,0.001]
[1773404455085,1.15991975,2127.8,2127.6,0.001]
[1773404455274,1.10036479,2127.8,2127.6,0.001]
[1773404455481,6.96091439,2127.8,2127.6,0.001]
[1773404455681,6.9456511,2127.8,2127.6,0.001]
[1773404455886,6.90104806,2127.8,2127.6,0.001]
[1773404456200,6.82566069,2127.8,2127.6,0.001]
[1773404456402,5.90452245,2127.8,2127.6,0.001]
[1773404456592,7.04997774,2127.8,2127.6,0.001]
[1773404456900,7.00504576,2127.8,2127.6,0.001]
[1773404457080,6.95968587,2127.8,2127.6,0.001]
[1773404457397,6.87248006,2127.8,2127.6,0.001]
[1773404457591,6.84298101,2127.8,2127.6,0.001]
[1773404457900,6.79717002,2127.8,2127.6,0.001]
[1773404458101,6.75301118,2127.8,2127.6,0.001]
[1773404458266,6.70792807,2127.8,2127.6,0.001]
[1773404458469,6.64819132,2127.8,2127.6,0.001]
[1773404458805,6.6338074,2127.8,2127.6,0.001]
[1773404458994,6.58806326,2127.8,2127.6,0.001]
[1773404459307,6.49954159,2127.8,2127.6,0.001]
[1773404459509,6.45441532,2127.8,2127.6,0.001]
[1773404459711,6.44017343,2127.8,2127.6,0.001]
[1773404459925,6.40997197,2127.8,2127.6,0.001]
[1773404460101,6.36556738,2127.8,2127.6,0.001]
[1773404460314,6.32095899,2127.8,2127.6,0.001]
[1773404460621,6.26117783,2127.8,2127.6,0.001]
[1773404460924,6.23189272,2127.8,2127.4,0.001]
[1773404461086,6.17270098,2127.8,2127.4,4.08641453]
[1773404461287,0.002,2128.1,2127.5,4.17644389]
[1773404461596,0.002,2128.1,2127.6,4.12944037]
[1773404461790,1.16217223,2128.1,2127.5,4.12944037]
[1773404461997,1.13292553,2128.1,2127.7,4.12944037]
[1773404462299,7.08126249,2128.2,2127.8,5.76744037]
[1773404462614,7.02103189,2128.2,2127.8,5.76744037]
[1773404462794,1.17474004,2128.2,2127.8,5.76744037]
[1773404462994,10.58832436,2128.3,2127.8,5.76744037]
[1773404463195,10.54375952,2128.3,2127.8,5.76744037]
[1773404463397,7.06405356,2128.3,2127.8,6.94234005]
[1773404463596,7.04966011,2128.3,2127.8,5.76744037]
[1773404464314,7.03476683,2128.3,2127.8,5.76744037]
[1773404464519,6.98827946,2128.3,2127.8,5.76744037]
[1773404464691,6.95750888,2128.3,2127.8,5.76744037]
[1773404464892,6.92797632,2128.3,2127.8,4.12944037]
[1773404465205,6.88293781,2128.3,2127.9,1.64]
[1773404465412,6.82265271,2128.3,2127.9,1.64]
[1773404465719,6.77894387,2128.3,2127.9,1.64]
[1773404465916,6.74960169,2128.3,2127.9,1.64]
[1773404466091,6.70524176,2128.3,2127.9,1.64]
[1773404466291,6.64581864,2128.3,2127.9,1.64]
[1773404466620,6.58725786,2128.3,2127.9,1.64]
[1773404466823,6.57173121,2128.3,2127.9,1.64]
[1773404466998,6.54337166,2128.3,2127.9,1.64]
[1773404467323,6.45423411,2128.3,2127.9,1.64]
[1773404467510,6.41025087,2128.3,2127.9,1.64]
[1773404467710,0.002,2128.1,2127.9,1.64]
[1773404467893,7.07916888,2128.3,2127.9,1.64]
[1773404468093,7.03599694,2128.3,2127.9,1.64]
[1773404468322,7.00675151,2128.3,2127.9,1.64]
[1773404468623,6.93258518,2128.3,2127.9,1.64]
[1773404468795,6.90298756,2128.3,2127.9,1.64]
[1773404468996,6.88768939,2128.3,2127.9,1.64]
[1773404469208,6.84340805,2128.3,2127.9,1.64]
[1773404469404,6.79813378,2128.3,2127.9,1.64]
[1773404469701,5.84708668,2128.3,2127.9,6.59802693]
[1773404469904,7.00744986,2128.3,2127.9,6.59802693]
[1773404470104,6.9776509,2128.3,2127.9,6.59802693]
[1773404470324,6.93308507,2128.3,2127.9,6.59802693]
[1773404470498,6.88769667,2128.3,2127.9,6.59802693]
[1773404470702,6.82835189,2128.3,2127.9,6.59802693]
[1773404471009,6.81281742,2128.3,2127.9,6.59802693]
[1773404471224,6.75357194,2128.3,2127.9,6.59802693]
[1773404471405,6.70856516,2128.3,2127.9,6.59802693]
[1773404471606,6.64895488,2128.3,2127.9,6.59802693]
[1773404471818,6.60500715,2128.3,2127.9,6.59802693]
[1773404472128,6.57547005,2128.3,2127.9,4.95802693]
[1773404472299,6.54610469,2128.3,2128.0,1.642]
[1773404472498,6.50228127,2128.3,2127.9,4.95802693]
[1773404472699,6.44434122,2128.3,2127.9,4.95802693]
[1773404472900,6.42922933,2128.3,2127.9,4.95802693]
[1773404473109,6.41503231,2128.3,2127.6,0.001]
[1773404473400,6.34100622,2128.3,2127.7,0.65058894]
[1773404473602,6.31103485,2128.3,2127.8,1.642]
[1773404473799,6.10748249,2127.9,2127.4,0.75621848]
[1773404474022,6.10748249,2127.9,2127.4,0.001]
[1773404474207,6.08566896,2127.7,2127.2,1.66313734]
[1773404474407,6.02597468,2127.7,2127.2,0.03613734]
[1773404474613,6.07045565,2127.3,2126.9,1.616]
[1773404474934,6.02539633,2127.3,2126.8,1.606]
[1773404475236,6.03263441,2127.1,2126.5,0.904148]
[1773404475438,5.9888175,2127.1,2126.5,0.904148]
[1773404475602,5.92976439,2127.1,2126.5,0.904148]
[1773404475808,5.88468419,2127.1,2126.5,0.904148]
[1773404476031,5.87014627,2127.1,2126.5,0.904148]
[1773404476239,1.14595158,2127.2,2126.5,1.11128205]
[1773404476408,5.92895728,2127.2,2126.6,1.598]
[1773404476730,7.03856594,2127.3,2126.7,1.12668374]
[1773404476935,6.99387638,2127.3,2126.7,1.12668374]
[1773404477130,6.97880751,2127.3,2126.7,2.30218275]
[1773404477336,6.93492519,2127.3,2126.8,1.12668374]
[1773404477553,5.92164289,2127.3,2126.8,1.12668374]
[1773404477707,4.70035846,2127.5,2126.7,1.17549901]
[1773404477708,5.88461684,2127.5,2126.9,1.18623264]
[1773404477902,5.86994119,2127.5,2126.8,1.20090829]
[1773404478927,5.86994119,2127.5,2127.0,1.20090829]
[1773404479325,1.17514336,2127.4,2127.0,1.20090829]
[1773404479531,1.14551354,2127.4,2127.0,1.24792286]
[1773404479718,1.10022472,2127.4,2127.0,1.24792286]
[1773404479922,1.05617612,2127.4,2127.0,1.24792286]
[1773404480241,1.01121458,2127.4,2127.1,1.215497]
[1773404480438,0.96649468,2127.4,2127.1,1.215497]
[1773404480635,0.9234288,2127.4,2127.1,1.215497]
[1773404480843,0.9234288,2127.4,2127.0,0.04801457]
[1773404480844,6.04692088,2127.4,2127.0,0.04801457]
[1773404481022,7.19114565,2127.4,2127.0,0.04801457]
[1773404481213,7.16121182,2127.4,2127.0,0.04801457]
[1773404481408,7.10272091,2127.4,2127.0,0.04801457]
[1773404481620,7.05814748,2127.4,2127.0,0.04801457]
[1773404481835,6.99834333,2127.4,2127.0,0.04801457]
[1773404482439,6.99834333,2127.4,2127.0,1.62]
[1773404482440,6.92569468,2127.4,2127.0,1.62]
[1773404482610,6.91097624,2127.4,2127.0,1.62]
[1773404482815,5.72123453,2127.4,2127.0,4.3219283]
[1773404483131,6.04692088,2127.4,2127.0,1.62]
[1773404483316,7.19333195,2127.3,2127.0,1.62]
[1773404483515,7.1495777,2127.3,2127.0,1.62]
[1773404483733,7.10363725,2127.3,2127.0,1.62]
[1773404483921,7.04557139,2127.3,2127.0,1.62]
[1773404484311,7.00055614,2127.3,2127.0,1.62]
[1773404484513,6.04692088,2127.3,2127.0,1.62]
[1773404484708,6.00127033,2127.3,2127.0,1.62]
[1773404484909,7.17708159,2127.5,2127.1,0.04701236]
[1773404485109,7.22183326,2127.9,2127.1,1.67857102]
[1773404485335,7.19180352,2127.9,2127.3,1.64576543]
[1773404485538,7.14766778,2127.9,2127.3,1.69277337]
[1773404485735,7.1034236,2127.9,2127.3,1.69277337]
[1773404485914,7.04387329,2127.9,2127.3,1.69277337]
[1773404486126,7.02852327,2127.9,2127.3,1.69277337]
[1773404486329,6.99825143,2127.9,2127.3,1.64576543]
[1773404486520,6.95320588,2127.9,2127.3,1.64576543]
[1773404486843,7.1768432,2127.9,2127.4,1.69072248]
[1773404487156,7.19335129,2128.1,2127.3,1.71909338]
[1773404487351,7.1634075,2128.1,2127.4,1.74903717]
[1773404487514,7.10371759,2128.1,2127.3,1.1751986]
[1773404487712,7.05914978,2128.1,2127.3,1.1751986]
[1773404487920,7.01516297,2128.1,2127.5,1.8972817]
[1773404488143,6.98529342,2128.1,2127.6,3.541315]
[1773404488321,6.95542197,2128.1,2127.6,1.629]
[1773404488527,6.91086629,2128.1,2127.6,1.629]
[1773404488735,6.86587758,2128.1,2127.6,1.629]
[1773404488936,6.82106088,2128.1,2127.6,1.629]
[1773404489140,6.79142945,2128.1,2127.6,1.629]
[1773404489349,6.76054086,2128.1,2127.6,1.629]
[1773404489544,6.73047023,2128.1,2127.5,1.631]
[1773404489844,6.65687858,2128.1,2127.5,1.631]
[1773404490049,6.61221222,2128.1,2127.5,1.631]
[1773404490219,6.59705189,2128.1,2127.5,1.631]
[1773404490422,6.5516621,2128.1,2127.5,1.631]
[1773404490632,6.50773169,2128.1,2127.5,1.631]
[1773404490832,6.46333249,2128.1,2127.5,1.631]
[1773404491050,6.41854152,2128.1,2127.5,1.631]
[1773404491255,6.4040379,2128.1,2127.5,1.631]
[1773404491425,6.38884678,2128.1,2127.5,1.631]
[1773404493051,6.38884678,2128.1,2127.5,1.634]
[1773404493247,6.38884678,2128.1,2127.3,2.56354817]
[1773404493546,6.38884678,2128.1,2127.4,4.19754817]
[1773404493942,0.002,2127.9,2127.4,4.19754817]
[1773404494149,6.01855226,2128.0,2127.4,4.19754817]
[1773404494322,1.17486724,2127.9,2127.5,2.59191679]
[1773404494652,1.13005852,2128.0,2127.5,2.62156641]
[1773404494853,1.0709045,2128.0,2127.6,2.62156641]
[1773404495157,0.99524354,2128.0,2127.6,2.62156641]
[1773404495454,0.96553749,2128.0,2127.6,2.62156641]
[1773404495653,0.9206382,2128.0,2127.6,2.62156641]
[1773404495957,4.70059452,2128.3,2127.6,2.63435616]
[1773404495958,1.131423,2128.3,2127.6,2.63435616]
[1773404496135,1.10090524,2128.3,2127.6,2.63435616]
[1773404496330,7.22355335,2128.4,2127.8,2.63435616]
[1773404496542,7.19446189,2128.4,2127.8,2.63435616]
[1773404496723,7.13394057,2128.4,2127.8,2.63435616]
[1773404496923,7.09015321,2128.4,2127.8,2.63435616]
[1773404497143,7.03176668,2128.4,2127.8,2.63435616]
[1773404497352,7.03176668,2128.4,2127.6,3.99915725]
[1773404497526,6.98594444,2128.4,2127.7,1.637]
[1773404497850,6.9137852,2128.4,2127.8,2.91342763]
[1773404498037,6.86916258,2128.4,2127.8,2.91342763]
[1773404498248,6.82488908,2128.4,2127.8,2.91342763]
[1773404498431,6.81072637,2128.4,2127.8,2.91342763]
[1773404498634,6.76585452,2128.4,2127.8,2.91342763]
[1773404498843,6.72128605,2128.4,2127.8,2.91342763]
[1773404499055,6.67672475,2128.4,2127.8,2.91342763]
[1773404499224,6.63165069,2128.4,2127.8,2.91342763]
[1773404499423,6.61716136,2128.4,2127.8,2.91342763]
[1773404499819,6.61716136,2128.4,2127.7,1.637]
[1773404500459,6.61716136,2128.4,2127.7,4.87574815]
[1773404500648,6.61716136,2128.4,2127.7,6.05072467]
[1773404500826,6.61716136,2128.4,2127.7,4.87574815]
[1773404501662,6.61716136,2128.4,2127.7,1.637]
[1773404502556,6.61716136,2128.4,2127.7,4.87574815]
[1773404502774,6.61716136,2128.4,2127.8,3.23874815]
[1773404503065,6.61716136,2128.4,2127.7,1.637]
[1773404503762,6.61716136,2128.4,2127.7,6.05072493]
[1773404504962,6.61716136,2128.4,2127.7,4.87574815]
[1773404505337,6.61716136,2128.4,2127.8,3.23874815]
[1773404506262,0.002,2128.2,2127.8,3.23874815]
[1773404506445,6.20404982,2128.2,2127.8,1.639]
[1773404506758,6.17415345,2128.2,2127.8,1.639]
[1773404506960,7.37680664,2128.1,2127.6,1.17602899]
[1773404507148,7.34778876,2128.1,2127.7,1.639]
[1773404507334,7.31810648,2128.1,2127.7,1.639]
[1773404509175,7.31810648,2128.1,2127.6,0.001]
[1773404509857,7.25803104,2128.1,2127.6,0.001]
[1773404510044,7.21220993,2128.1,2127.6,0.001]
[1773404510248,7.21220993,2128.1,2127.6,1.64]
[1773404511070,7.21220993,2128.1,2127.6,0.001]
[1773404511378,7.21220993,2128.1,2127.6,1.64]
[1773404512948,7.1686536,2128.1,2127.6,1.64]
[1773404513148,6.41955866,2128.0,2127.6,0.001]
[1773404513346,6.40493259,2128.0,2127.6,0.001]
[1773404513560,6.39048976,2128.0,2127.6,0.001]
[1773404513880,6.34671145,2128.0,2127.6,0.001]
[1773404515377,7.62323102,2127.9,2127.6,0.001]
[1773404515759,1.15957724,2128.0,2127.7,3.39781914]
[1773404515959,1.1454154,2128.0,2127.7,3.39781914]
[1773404516280,1.10104115,2128.0,2127.7,3.39781914]
[1773404516456,1.05568151,2128.0,2127.7,3.39781914]
[1773404516657,1.04084253,2128.0,2127.7,3.39781914]
[1773404516857,0.99508424,2128.0,2127.7,3.39781914]
[1773404517059,0.93561295,2128.0,2127.7,3.39781914]
[1773404517248,0.89187437,2128.0,2127.7,3.39781914]
[1773404517449,17.49784561,2128.1,2127.7,3.39781914]
[1773404517648,1.17484687,2128.0,2127.7,3.39781914]
[1773404517877,1.11573345,2128.0,2127.7,3.39781914]
[1773404518086,1.07030688,2128.0,2127.7,3.39781914]
[1773404518280,1.02572431,2128.0,2127.7,3.39781914]
[1773404518583,0.96649123,2128.0,2127.7,3.39781914]
[1773404518882,0.92145375,2128.0,2127.7,3.39781914]
[1773404519178,1.17484687,2128.0,2127.7,3.39781914]
[1773404519366,1.13075532,2128.0,2127.7,3.39781914]
[1773404519679,1.08686015,2128.0,2127.7,3.39781914]
[1773404519847,1.05659187,2128.0,2127.7,3.39781914]
[1773404520053,1.01173996,2128.0,2127.7,3.39781914]
[1773404520279,0.96670512,2128.0,2127.7,3.39781914]
[1773404520478,0.92224956,2128.0,2127.7,3.39781914]
[1773404520685,0.89206274,2128.0,2127.9,0.001]
[1773404521267,0.89206274,2128.0,2127.9,6.61e-05]
[1773404522163,6.30893252,2128.1,2127.9,3.39788524]
[1773404522464,0.78718185,2128.6,2127.9,3.39788524]
[1773404522465,7.59936143,2128.9,2127.9,6.61e-05]
[1773404522667,7.59936143,2128.9,2128.1,3.41914594]
[1773404523381,7.555678,2128.9,2128.2,3.46282937]
[1773404523686,7.49642834,2128.9,2128.2,1.17470162]
[1773404523858,7.48204998,2128.9,2128.3,3.53645739]
[1773404524054,7.43660081,2128.9,2128.2,1.17470162]
[1773404524257,6.21814904,2128.9,2128.5,3.58190656]
[1773404524474,7.34764377,2128.9,2128.6,1.64]
[1773404524780,7.31818162,2128.9,2128.6,1.64]
[1773404524980,7.2747493,2128.9,2128.6,1.64]
[1773404525281,7.24557798,2128.9,2128.6,1.64]
[1773404525474,7.20056517,2128.9,2128.6,1.64]
[1773404525648,7.1703088,2128.9,2128.6,1.64]
[1773404525853,7.15502617,2128.9,2128.6,1.64]
[1773404526055,7.11127296,2128.9,2128.6,1.64]
[1773404526253,7.05170402,2128.9,2128.6,1.64]
[1773404526454,7.00760261,2128.9,2128.6,1.64]
[1773404526693,7.61029238,2129.1,2128.6,6.84061464]
[1773404526985,7.57989698,2129.1,2128.7,4.03846069]
[1773404527183,7.53539208,2129.1,2128.7,4.03846069]
[1773404527362,0.002,2129.2,2128.7,4.03846069]
[1773404527555,0.002,2129.3,2128.7,4.1263452]
[1773404527992,0.002,2129.3,2128.9,4.1263452]
[1773404528192,0.002,2129.7,2128.9,4.1263452]
[1773404531418,0.002,2130.0,2129.0,4.1263452]
[1773404531706,1.14506822,2130.1,2128.9,4.1263452]
[1773404532268,6.44836378,2130.0,2129.0,1.64]
[1773404532489,6.44836378,2130.0,2129.1,4.1263452]
[1773404533297,6.44836378,2130.0,2128.7,1.17437053]
[1773404533502,6.44836378,2129.8,2129.2,1.64]
[1773404533667,6.44836378,2129.8,2129.3,1.64]
[1773404535166,6.44836378,2129.8,2128.8,4.1263452]
[1773404535586,6.44836378,2129.6,2128.8,5.30070911]
[1773404536369,6.44836378,2129.6,2129.0,4.1263452]
[1773404536692,1.17387425,2129.7,2129.0,4.1263452]
[1773404536890,1.17384375,2129.8,2129.0,4.1263452]
[1773404537084,7.60896037,2129.9,2128.9,1.64]
[1773404537280,7.59456863,2129.9,2129.0,4.15393642]
[1773404537481,7.57929584,2129.9,2129.0,4.16920921]
[1773404537704,7.53409498,2129.9,2129.1,4.21441007]
[1773404537891,7.49052166,2129.9,2129.1,4.21441007]
[1773404539702,7.49052166,2129.9,2129.2,1.17414991]
[1773404540901,7.49052166,2129.9,2129.2,5.4321333]
[1773404541085,7.49052166,2129.9,2129.3,4.25798339]
[1773404541468,7.47599605,2129.9,2129.2,1.17414991]
[1773404541802,7.40153174,2129.9,2129.2,5.44665891]
[1773404542002,7.38642078,2129.9,2129.2,5.44665891]
[1773404542197,7.35662417,2129.9,2129.2,5.44665891]
[1773404542398,7.31181739,2129.9,2129.2,5.44665891]
[1773404542606,7.25151931,2129.9,2129.2,5.44665891]
[1773404542810,7.20631964,2129.9,2129.2,5.44665891]
[1773404543013,7.16130682,2129.9,2129.2,5.44665891]
[1773404543215,7.14653528,2129.9,2129.3,4.60196977]
[1773404543515,7.13062873,2130.1,2129.5,4.62997872]
[1773404543708,7.08665597,2130.1,2129.6,7.50132188]
[1773404543911,7.0414125,2130.1,2129.6,7.50132188]
[1773404544108,7.02694809,2130.1,2129.6,7.50132188]
[1773404544302,6.00255576,2130.3,2129.7,4.77780593]
[1773404544502,7.11640523,2130.3,2129.6,2.81289717]
[1773404544821,6.01563422,2130.5,2129.8,4.86293483]
[1773404544991,7.18908842,2130.5,2129.8,4.86293483]
[1773404545815,7.17374152,2130.5,2129.8,4.86293483]
[1773404546814,7.18703939,2130.6,2129.8,6.03671342]
[1773404547990,0.002,2130.3,2129.8,6.03671342]
[1773404549708,7.13041796,2130.6,2129.9,4.83633145]
[1773404549918,7.13041796,2130.6,2129.7,4.69540866]
[1773404549919,7.08634432,2130.6,2130.0,1.64]
[1773404550098,7.08634432,2130.6,2129.7,4.83633145]
[1773404550421,7.08634432,2130.6,2129.6,1.19267735]
[1773404550594,7.08634432,2130.6,2129.6,6.0290088]
[1773404550993,7.04258653,2130.6,2129.6,6.0290088]
[1773404551418,7.01341063,2130.6,2129.7,1.64]
[1773404551802,6.01363422,2130.4,2129.6,0.01874981]
[1773404552823,6.01363422,2130.0,2129.6,0.01874981]
[1773404553228,5.98323356,2130.0,2129.4,1.639]
[1773404553523,5.92469409,2130.0,2129.4,1.639]
[1773404553690,5.88058048,2130.0,2129.4,1.639]
[1773404553892,5.85088216,2130.0,2129.4,1.639]
[1773404555127,6.01363422,2129.8,2129.3,0.001]
[1773404556523,6.01363422,2129.8,2129.4,1.639]
[1773404557125,6.01363422,2129.8,2129.3,0.001]
[1773404557327,1.17387425,2129.7,2129.3,0.001]
[1773404557693,7.17201565,2129.7,2129.3,0.001]
[1773404557893,7.11258898,2129.7,2129.3,0.001]
[1773404558130,7.06747138,2129.7,2129.3,0.001]
[1773404558309,7.05224524,2129.7,2129.3,0.001]
[1773404558507,7.03704516,2129.7,2129.4,1.639]
[1773404559192,7.03704516,2129.7,2129.3,0.001]
[1773404560439,7.03704516,2129.7,2129.5,0.001]
[1773404561233,7.03704516,2129.7,2129.3,0.001]
[1773404561463,7.03704516,2129.7,2129.0,6.17434295]
[1773404561599,1.02341094,2129.7,2129.0,6.17434295]
[1773404561797,1.16153123,2129.8,2129.1,4.99908351]
[1773404562000,1.16153123,2129.8,2129.0,5.00008351]
[1773404562001,7.13134837,2129.8,2129.0,5.00008351]
[1773404562308,7.07228466,2129.8,2129.0,5.00008351]
[1773404562514,7.05801032,2129.8,2129.0,5.00008351]
[1773404562912,7.05801032,2129.8,2129.1,1.639]
[1773404564827,7.05801032,2129.8,2129.0,0.001]
[1773404565013,7.05801032,2129.8,2129.1,1.639]
[1773404565334,7.05801032,2129.8,2129.0,0.001]
[1773404566023,7.04293947,2129.8,2129.0,0.001]
[1773404566327,6.96794542,2129.8,2129.0,0.001]
[1773404566731,6.92401899,2129.8,2129.0,0.001]
[1773404566903,6.01363422,2129.8,2129.0,1.64]
[1773404567102,7.14273536,2129.8,2129.0,1.64]
[1773404567313,7.09828054,2129.8,2129.0,1.64]
[1773404567530,7.08345379,2129.8,2129.0,1.64]
[1773404567733,7.03797493,2129.8,2129.0,1.64]
[1773404567913,6.97801473,2129.8,2129.0,1.64]
[1773404568230,6.91789329,2129.8,2129.0,1.64]
[1773404568432,6.88845707,2129.8,2129.0,1.64]
[1773404568635,6.85854087,2129.8,2129.0,1.64]
[1773404568831,6.81280667,2129.8,2129.0,1.64]
[1773404569030,6.76779268,2129.8,2129.1,5.40327812]
[1773404569241,6.72292684,2129.8,2129.0,2.8142563]
[1773404569401,6.69320252,2129.8,2129.1,5.49333927]
[1773404569605,6.67810917,2129.8,2129.1,5.49333927]
[1773404569806,6.61754849,2129.8,2129.1,5.49333927]
[1773404570117,6.54314807,2129.8,2129.1,5.49333927]
[1773404570311,6.49837598,2129.8,2129.1,6.6675415]
[1773404570517,6.48374586,2129.8,2129.0,1.64]
[1773404570719,6.43863616,2129.8,2129.0,1.64]
[1773404570926,6.39282353,2129.8,2129.0,1.64]
[1773404571129,6.34682639,2129.8,2129.0,0.001]
[1773404571310,6.31752809,2129.8,2129.0,0.001]
[1773404571510,6.28838494,2129.8,2129.0,0.001]
[1773404571709,6.25944145,2129.8,2129.0,0.001]
[1773404571907,6.21467053,2129.8,2129.0,0.001]
[1773404572107,6.15461675,2129.8,2129.0,0.001]
[1773404572325,6.10952709,2129.8,2129.0,0.001]
[1773404572507,6.07968502,2129.8,2129.0,0.001]
[1773404572844,6.02017895,2129.8,2129.1,1.639]
[1773404573034,6.00505226,2129.8,2129.1,1.639]
[1773404573212,6.00505226,2129.8,2128.8,0.001]
[1773404573406,6.49999999,2129.7,2128.8,0.001]
[1773404573617,6.5,2129.3,2128.8,0.001]
[1773404573833,6.46920274,2129.1,2128.8,0.001]
[1773404574009,6.42484642,2129.1,2128.8,0.001]
[1773404574204,6.38080823,2129.1,2128.8,0.001]
[1773404574439,6.33572151,2129.1,2128.8,0.001]
[1773404574641,6.32130741,2129.1,2128.8,0.001]
[1773404574835,6.27578417,2129.1,2128.8,0.001]
[1773404575015,6.23100049,2129.1,2128.8,0.001]
[1773404575209,6.17119425,2129.1,2128.8,0.001]
[1773404575410,6.12725616,2129.1,2128.8,0.001]
[1773404575710,6.09767277,2129.1,2128.8,0.001]
[1773404575909,7.47126103,2129.0,2128.4,0.001]
[1773404576142,7.42743345,2129.0,2128.5,1.618]
[1773404576339,7.41233055,2129.0,2128.5,1.618]
[1773404577336,7.41233055,2129.0,2128.5,1.93642423]
[1773404579311,7.39738646,2129.0,2128.5,1.93642423]
[1773404579510,7.33734314,2129.0,2128.5,1.93642423]
[1773404579743,7.32282812,2129.0,2128.5,1.93642423]
[1773404579925,7.27758937,2129.0,2128.5,1.93642423]